Cogmind - Beta 11 X10 *** ADVENTURER MODE // 2022.02.11 @ 11:02:24 Player: IzRey Result: Destroyed by L-41 Fighter with Axe Performance ------------- Evolutions (1) 500 Regions Visited (5) 1000 Robots Destroyed (54) 270 Value Destroyed (1519) 1519 Prototype IDs (3) 60 Alien Tech Used (0) 0 Bonus (780) 780 TOTAL SCORE: 4129 Bonus ------- High Alert Combat Kills 26 Follower Combat Kills 198 Met Imprinter 300 Was Imprinted 300 Friendly Fire -44 Cogmind --------- Core Integrity 0/400 Matter 300/300 Energy 300/300 System Corruption 0% Temperature Cool (38) Movement Treading (250) Ox1 Location -6/Proximity Caves Parts ------- > --- POWER (1) -------- Micro Fission Core > --- PROPULSION (3) --- Armored Treads > --- UTILITY (3) ------ Medium Storage Unit Medium Battery Improved Sensor Array > --- WEAPON (2) ------- CR-A16's Pointy Stick > --- INVENTORY (10) --- Light Ion Engine Light Deuterium Engine Weapon Shielding Hacking Suite Hacking Suite Guided Missile Launcher Heavy Flail Mining Claw Peak State ------------ > --- POWER ------------ Micro Fission Core > --- PROPULSION ------- Armored Treads Armored Treads Compact Wheel > --- UTILITY ---------- Medium Storage Unit Medium Battery Improved Sensor Array > --- WEAPON ----------- Rocket Array Mining Claw > --- INVENTORY -------- Light Ion Engine Light Deuterium Engine Weapon Shielding Hacking Suite Hacking Suite Guided Missile Launcher Heavy Flail CR-A16's Pointy Stick [Rating: 26] Favorites ----------- Power Micro Fission Core Engine Ion Engine Power Core Micro Fission Core Propulsion Compact Wheel Treads Armored Treads Wheel Compact Wheel Utility Medium Storage Unit Device Disposable Heat Sink Storage Medium Storage Unit Weapon Mining Claw Energy Gun Improved Medium Laser Ballistic Gun Assault Rifle Ballistic Cannon Light Cannon Launcher Rocket Array Impact Weapon Heavy Flail Slashing Weapon Mining Claw Piercing Weapon CR-A16's Pointy Stick Build | -11 -10 -9 -9 -7 -6 ------- Run | Scr Mat Mat Min Zio Pro Slots Evolved 2 | . . 2 . . . Power . | . . . . . . Propulsion 1 | . . 1 . . . Utility 1 | . . 1 . . . Weapon . | . . . . . . Parts Attached 38 | 6 5 11 . 2 14 Power 3 | 1 . 1 . 1 . Engine 2 | 1 . 1 . . . Core 1 | . . . . 1 . Reactor . | . . . . . . Propulsion 15 | 2 2 4 . . 7 Treads 5 | . . . . . 5 Leg . | . . . . . . Wheel 10 | 2 2 4 . . 2 Hover . | . . . . . . Flight . | . . . . . . Utility 5 | 1 2 1 . . 1 Device 2 | . 1 . . . 1 Storage 3 | 1 1 1 . . . Processor . | . . . . . . Hackware . | . . . . . . Protection . | . . . . . . Artifact . | . . . . . . Weapon 15 | 2 1 5 . 1 6 Energy Gun 2 | . 1 1 . . . Energy Cannon . | . . . . . . Ballistic Gun 2 | 2 . . . . . Ballistic Cannon 2 | . . 2 . . . Launcher 4 | . . . . 1 3 Special Weapon . | . . . . . . Impact Weapon 3 | . . 1 . . 2 Slashing Weapon 1 | . . 1 . . . Piercing Weapon 1 | . . . . . 1 Special Melee Weapon . | . . . . . . Unidentified Prototypes 3 | . 1 1 . 1 . Parts Lost 14 | . 1 6 . . 7 Power 1 | . . 1 . . . Propulsion 8 | . . 3 . . 5 Utility . | . . . . . . Weapon 5 | . 1 2 . . 2 Highest Loss Streak 2 | . 1 2 . . 2 To Critical Strikes . | . . . . . . Average Slot Usage (%) 96 | . 93 90 100 100 95 Engine 4 | . 14 4 11 5 . Core 4 | . . . . 5 11 Treads 2 | . . . . . 10 Wheel 29 | . 28 31 33 33 19 Device 11 | . 13 11 11 11 11 Storage 21 | . 14 21 22 22 22 Energy Gun 2 | . 8 8 . . . Ballistic Gun 1 | . 14 3 . . . Ballistic Cannon 1 | . . 6 . . . Launcher 4 | . . . . 6 9 Impact Weapon 3 | . . 2 11 4 . Slashing Weapon 7 | . . . 11 11 9 Naked Turns . | . . . . . . Heaviest Build 27 | 11 19 23 23 27 27 Greatest Support 48 | 26 26 48 48 48 48 Greatest Overweight (x) 8 | . . . . . 8 Average Overweight (x) . | . . . . . . Largest Inventory Capacity 10 | 8 10 10 10 10 10 Average Capacity 9 | 6 9 10 10 10 10 Most Carried 10 | 3 7 10 9 10 10 Average Carried 8 | 1 4 7 9 9 9 Final Capacity 10 | 8 10 10 10 10 10 Final Carried 10 | 3 7 9 9 10 9 Class Distribution -------------------- 98% | Mutant Dominant Class ---------------- Mutant | -10/Materials Mutant | -9/Materials Mutant | -9/Mines Mutant | -7/Zion Mutant | -6/Proximity Caves Resources | -11 -10 -9 -9 -7 -6 ----------- Run | Scr Mat Mat Min Zio Pro Matter Collected 1015 | 180 108 332 20 20 355 Remotely . | . . . . . . Salvage Created 1646 | . 144 825 . 51 626 Parts 104 | . 11 66 . 1 26 Haulers Intercepted . | . . . . . . Recyclers Shooed 1 | . . 1 . . . Parts Field Recycled . | . . . . . . Retrieved Matter . | . . . . . . Parts Self-Destructed 17 | . . . . 3 14 Prevented 5 | . . . . . 5 Kills | -11 -10 -9 -9 -7 -6 ------- Run | Scr Mat Mat Min Zio Pro Combat Hostiles Destroyed 41 | . 5 21 . . 15 Melee 1 | . . . . . 1 Guns 13 | . 5 8 . . . Cannons 12 | . . 12 . . . AOE 14 | . . . . . 14 Classes Destroyed 10 | . 2 6 . . 2 Worker 1 | . . 1 . . . Builder 2 | . . . . . 2 Recycler 3 | . . 1 . . 2 Operator 3 | . . 3 . . . Watcher 4 | . . 3 . . 1 Swarmer 16 | . 3 7 . . 6 Grunt 12 | . 2 7 . . 3 Brawler 2 | . . 1 . . 1 Duelist 1 | . . . . . 1 Sentry 10 | . . 6 . . 4 Best Kill Streak 11 | . 3 11 . . 7 Combat Bots Only 5 | . 3 4 . . 5 Max Kills in Single Turn 5 | . 1 2 . . 5 Gunslinging . | . . . . . . Exploded 5 | . . . . . 5 Melee 1 | . . . . . 1 Uniques/NPCs Destroyed . | . . . . . . Combat | -11 -10 -9 -9 -7 -6 -------- Run | Scr Mat Mat Min Zio Pro Damage Taken 2036 | . 206 635 . . 1195 Core 416 | . 9 129 . . 278 Absorbed by Shields . | . . . . . . Core Remaining (%) 98 | 100 96 . . . . Volleys Fired 83 | . 8 58 . . 17 Largest 2 | . 2 2 . . 1 Hottest 91 | . 65 91 . . 45 Shots Fired 136 | . 16 103 . . 17 Gun 69 | . 16 53 . . . Cannon 50 | . . 50 . . . Launcher 17 | . . . . . 17 Special . | . . . . . . Kinetic 65 | . 8 57 . . . Thermal 46 | . . 46 . . . Explosive 17 | . . . . . 17 Electromagnetic 8 | . 8 . . . . Robot Hit Streak 23 | . 7 16 . . 23 Robot Miss Streak 2 | . 1 2 . . 2 Penetration Max . | . . . . . . Secondary Targets . | . . . . . . Shots Hit Robots 121 | . 11 77 . 2 31 Core Hits 100 | . 8 34 . 1 57 Critical Kills . | . . . . . . Critical Parts Destroyed 1 | . . 1 . . . Critical Strikes 12 | . . 11 . . 1 Burn 6 | . . 6 . . . Blast 4 | . . 4 . . . Smash 1 | . . 1 . . . Impale 1 | . . . . . 1 Melee Attacks 40 | . . 5 . 15 20 Impact 4 | . . 4 . . . Slashing 26 | . . 1 . 15 10 Piercing 10 | . . . . . 10 Sneak Attacks 3 | . . 1 . . 2 Combat Hostiles . | . . . . . . Follow-up Attacks . | . . . . . . Damage Inflicted 3522 | . 157 1476 . 138 1751 Guns 829 | . 157 672 . . . Cannons 664 | . . 664 . . . Explosions 1337 | . . . . . 1337 Melee 692 | . . 140 . 138 414 Ramming . | . . . . . . Kinetic 738 | . 35 703 . . . Thermal 633 | . . 633 . . . Explosive 1337 | . . . . . 1337 Electromagnetic 122 | . 122 . . . . Impact 74 | . . 74 . . . Slashing 451 | . . 66 . 138 247 Piercing 167 | . . . . . 167 Highest Corruption . | . . . . . . Average Corruption . | . . . . . . Corruption Purged . | . . . . . . Corruption Blocked . | . . . . . . Overload Shots . | . . . . . . Overflow Damage 122 | . . 23 . 39 60 Projectiles . | . . . . . . Explosions 30 | . . . . . 30 Melee 92 | . . 23 . 39 30 Knockbacks 3 | . . 3 . . . Impact . | . . . . . . Kinetic 3 | . . 3 . . . Secondary . | . . . . . . Self-Inflicted Damage 202 | . . . . . 202 Shots 16 | . . . . . 16 Rammed . | . . . . . . Targets Rammed . | . . . . . . Kicked . | . . . . . . Crushed . | . . . . . . Highest Temperature 119 | . 33 119 . . 25 Average Temperature 23 | . 11 26 . . 10 Received Heat Transfer 467 | . 24 249 . . 194 Siege Activations . | . . . . . . Robots Corrupted . | . . . . . . Combat Hostiles . | . . . . . . Parts Fried 3 | . . 1 . . 2 Impact Corruptions 1 | . . 1 . . . Robots Melted . | . . . . . . Combat Hostiles . | . . . . . . Parts Melted 4 | . . 4 . . . Heat Transferred 1813 | . . 1813 . . . Parts Sabotaged . | . . . . . . Parts Stolen . | . . . . . . Parts Stripped . | . . . . . . Power Chain Reactions . | . . . . . . Missiles Intercepted . | . . . . . . Alert | -11 -10 -9 -9 -7 -6 ------- Run | Scr Mat Mat Min Zio Pro Peak Influence 527 | . 160 527 107 . . Initial 107 | . . 57 107 . . Average 188 | . 84 254 107 . . Maximum Alert Level 2 | . . 2 . . . Low Security (%) 61 | 100 100 36 100 . . Level 1 27 | . . 45 . . . Level 2 10 | . . 17 . . . Level 3 . | . . . . . . Level 4 . | . . . . . . Level 5 . | . . . . . . High Security . | . . . . . . Max Security . | . . . . . . Squads Dispatched 3 | . . 3 . . . Investigation . | . . . . . . Extermination . | . . . . . . Reinforcement 3 | . . 3 . . . Assault . | . . . . . . Garrison . | . . . . . . Intercept . | . . . . . . Construction Impeded . | . . . . . . Haulers Reinforced . | . . . . . . Active Scanning Responses . | . . . . . . Cargo Convoy Interrupts . | . . . . . . Stealth | -11 -10 -9 -9 -7 -6 --------- Run | Scr Mat Mat Min Zio Pro Distress Signals 5 | . . 4 . . 1 Communications Jammed . | . . . . . . Distress Signals . | . . . . . . Times Spotted 67 | . 8 35 . . 24 Peak Tracking Total 6 | . 3 6 . . 5 Tactical Retreats 2 | . 1 . . . 1 Traps | -11 -10 -9 -9 -7 -6 ------- Run | Scr Mat Mat Min Zio Pro Traps Triggered . | . . . . . . Indirectly . | . . . . . . Trap Hack Attempts . | . . . . . . Triggered . | . . . . . . Disarmed . | . . . . . . Reprogrammed 6 | . . 6 . . . Reused . | . . . . . . Traps Extracted . | . . . . . . Installed . | . . . . . . Triggered 1 | . . . . . 1 Machines | -11 -10 -9 -9 -7 -6 ---------- Run | Scr Mat Mat Min Zio Pro Machines Disabled 1 | . . 1 . . . Max in Single Turn 1 | . . 1 . . . Machines Sabotaged . | . . . . . . Garrisons Compromised . | . . . . . . Overloaded Fab Kills . | . . . . . . Hacking | -11 -10 -9 -9 -7 -6 --------- Run | Scr Mat Mat Min Zio Pro Machines Accessed 13 | . 4 8 . . 1 Terminals 9 | . 3 5 . . 1 Fabricators . | . . . . . . Repair Stations . | . . . . . . Recycling Units 2 | . 1 1 . . . Scanalyzers 2 | . . 2 . . . Garrison Access . | . . . . . . Total Hacks 25 | . 10 14 . . 1 Successful 18 | . 5 12 . . 1 Failed 7 | . 5 2 . . . Catastrophic 1 | . . 1 . . . Database Lockouts . | . . . . . . Manual 6 | . 2 3 . 1 . Terminals 17 | . 8 8 . . 1 Fabricators . | . . . . . . Repair Stations . | . . . . . . Recycling Units 3 | . 2 1 . . . Scanalyzers 5 | . . 5 . . . Garrison Access . | . . . . . . Terminal Hacks 11 | . 4 6 . . 1 Record 3 | . 1 2 . . . Open Door 1 | . . . . . 1 Level Access Points 1 | . . 1 . . . Branch Access Points 1 | . . 1 . . . Locate Traps 1 | . 1 . . . . Reprogram Traps 1 | . . 1 . . . Dispatch Records 1 | . 1 . . . . Hauler Manifests 2 | . 1 1 . . . Fabricator Hacks . | . . . . . . Repair Station Hacks . | . . . . . . Recycling Unit Hacks 2 | . 1 1 . . . Retrieve Components 2 | . 1 1 . . . Scanalyzer 5 | . . 5 . . . Insert Component 2 | . . 2 . . . Analyze 3 | . . 3 . . . Garrison Access Hacks . | . . . . . . Unauthorized Hacks . | . . . . . . Terminals . | . . . . . . Fabricators . | . . . . . . Repair Stations . | . . . . . . Recycling Units . | . . . . . . Scanalyzers . | . . . . . . Garrison Access . | . . . . . . Data Cores Recovered . | . . . . . . Used . | . . . . . . Hacking Detections 7 | . 3 4 . . . Full Trace Events 1 | . . 1 . . . Feedback Events . | . . . . . . Feedback Blocked . | . . . . . . Robot Schematics Acquired . | . . . . . . Robots Built . | . . . . . . Authchips . | . . . . . . Time . | . . . . . . Total Robot Build Rating . | . . . . . . Part Schematics Acquired 2 | . . 2 . . . Parts Built . | . . . . . . Authchips . | . . . . . . Time . | . . . . . . Total Part Build Rating . | . . . . . . Parts Repaired . | . . . . . . Time . | . . . . . . Parts Recycled . | . . . . . . Recycled Matter . | . . . . . . Retrieved Matter . | . . . . . . Retrieved Components 12 | . 2 10 . . . Parts Scanalyzed 2 | . . 2 . . . Part Schematics Acquired 2 | . . 2 . . . Parts Damaged . | . . . . . . Bothacking | -11 -10 -9 -9 -7 -6 ------------ Run | Scr Mat Mat Min Zio Pro Used RIF Installer . | . . . . . . Robots Hacked . | . . . . . . Non-combat . | . . . . . . Combat . | . . . . . . Robot Hacks Applied . | . . . . . . Relay Couplers Released . | . . . . . . Fabnet Peak Effective % . | . . . . . . Robots Rewired . | . . . . . . Allies Hacked . | . . . . . . Hacks Repelled . | . . . . . . Allies | -11 -10 -9 -9 -7 -6 -------- Run | Scr Mat Mat Min Zio Pro Total Allies 7 | . . . 3 4 . Largest Group 7 | . . . 3 7 7 Highest-Rated Group 187 | . . . 40 187 187 Highest-Rated Ally 38 | . . . 16 38 38 Total Orders . | . . . . . . Ally Attacks 46 | . . . . . 46 Total Damage 1108 | . . . . . 1108 Kills 7 | . . . . . 7 Allies Corrupted . | . . . . . . Allies Melted . | . . . . . . Intel | -11 -10 -9 -9 -7 -6 ------- Run | Scr Mat Mat Min Zio Pro Robot Analysis Total . | . . . . . . Derelict Logs Recovered 3 | . . . . 2 1 Drone Launches . | . . . . . . Drone Recoveries . | . . . . . . Exploration | -11 -10 -9 -9 -7 -6 ------------- Run | Scr Mat Mat Min Zio Pro Turns Passed 3920 | 47 301 899 225 1598 850 Spaces Moved 3415 | 41 304 729 217 1488 636 Core 9 | 5 . . . . 4 Treads 61 | . . . . . 61 Legs . | . . . . . . Wheels 3345 | 36 304 729 217 1488 571 Hover . | . . . . . . Flight . | . . . . . . Fastest Speed 50 | 50 80 80 100 100 100 Average Speed 97 | 85 85 86 100 100 108 Slowest Speed 450 | 100 90 100 100 100 450 Overloaded Moves . | . . . . . . Propulsion Burnouts . | . . . . . . Robots Hopped . | . . . . . . Cave-ins Triggered . | . . . . . . Exploration Rate (%) 52 | 4 49 74 39 90 60 Regions Visited 5 Branch Regions 3 Pre-discovered Areas 2 | . . . . 1 1 Known Exits Taken 1 | . . 1 . . . Unknown Exits Taken 4 | 1 1 . 1 1 . Scrap Searched 3 | . . . 1 2 . Spaces Dug 1 | . . 1 . . . Terrain Destroyed 56 | . . 1 . . 55 Melee 1 | . . 1 . . . Projectile . | . . . . . . AOE 55 | . . . . . 55 Terrain Rammed . | . . . . . . Walls Destroyed . | . . . . . . Machines Disabled . | . . . . . . Actions | -11 -10 -9 -9 -7 -6 --------- Run | Scr Mat Mat Min Zio Pro Total 3784 | 49 327 887 224 1570 727 Wait 174 | . 4 73 8 55 34 Move 3410 | 40 303 728 216 1487 636 Hop . | . . . . . . Pick Up 22 | 3 3 10 . 4 2 Fast Attach 18 | 6 2 2 . 2 6 Attach 11 | . . 8 . . 3 Detach 4 | . 1 1 . 1 1 Swap 9 | . 3 1 . . 5 Drop 13 | . 3 1 . 6 3 Fire 83 | . 8 58 . . 17 Melee 40 | . . 5 . 15 20 Ram . | . . . . . . Kick . | . . . . . . Crush . | . . . . . . Escape Stasis . | . . . . . . Rewire . | . . . . . . Trap . | . . . . . . Miscellaneous . | . . . . . . Route ------- -11/Scrapyard -10/Materials (discovered 2 exits: *Mat / [*Min]) -9/Materials (discovered 6 exits: *Mat x3 / *Min / *Sto x2) -9/Mines -7/Zion -6/Proximity Caves History --------- Turn | Location | Event 5 | -11/Scrapyard | Discovered new exit (range 15) 48 | -11/Scrapyard | Entered Materials 210 | -10/Materials | Discovered new exit (range 14) 300 | -10/Materials | Build established: Mutant 321 | -10/Materials | Discovered new exit (range 16) 349 | -10/Materials | Entered another Materials area 349 | -9/Materials | Evolved 2 slots: Propulsion x1, Utility x1 426 | -9/Materials | Identified exit to Mines 426 | -9/Materials | Identified exit to Storage 441 | -9/Materials | Identified exit to Materials 1248 | -9/Materials | Entered Mines 1249 | -9/Mines | A Derelict revealed a hidden shortcut to a safe place 1404 | -9/Mines | Assisted by bots powering up and referring to "LRC-V3" 1473 | -9/Mines | Entered Zion 1473 | -7/Zion | Accompanied by 3 allies 1650 | -7/Zion | Learned location of 1 exit from Factory 1869 | -7/Zion | Imprinted 1871 | -7/Zion | Declared Zion's savior 2029 | -7/Zion | Found CR-A16's Pointy Stick 2087 | -7/Zion | Found Prototype Launcher 2087 | -7/Zion | Identified Rocket Array 2093 | -7/Zion | Found Prototype Launcher 2184 | -7/Zion | Learned Factory emergency access door positions 2208 | -7/Zion | Learned 8 Factory zone layouts 2326 | -7/Zion | Discovered new exit (range 12) 3071 | -7/Zion | Entered Proximity Caves 3071 | -6/Proximity Caves | Accompanied by 7 allies 3529 | -6/Proximity Caves | Attracted the attention of an 0b10 checkpoint 3646 | -6/Proximity Caves | Snuck into a huge 0b10 base via the rear entrance 3705 | -6/Proximity Caves | Core integrity fell below 50% 3919 | -6/Proximity Caves | Core integrity fell below 20% 3921 | -6/Proximity Caves | Destroyed by L-41 Fighter with Axe Last Messages --------------- 03793_ Destroyed Com. Wheel. 03804_ Lgt. Nuclear Core fries itself beyond repair. 03806_ Autogun fries itself beyond repair. 03826_ Wheel severed. 03828_ Rocket Array destroyed. 03837_ Arm. Treads severed. 03846_ L-41 Fighter suffers critical hit (Impale). 03846_ L-41 Fighter destroyed. 03849_ Acquired 20 matter. 03859_ Acquired Wheel. 03861_ Imp. Melee Analysis Suite fries itself beyond repair. 03862_ Acquired Arm. Treads. 03866_ Acquired 30 matter. 03887_ Connecting with Door Terminal... 03887_ Current location identified: Proximity Caves >>Open(Door) Sealed Heavy Doors opened. 03915_ Wheel destroyed. 03921_ Arm. Treads destroyed. 03921_ Base Generator explodes. Map ----- +----------------------------------------------------+ | ??????????????????????????????????######?????????? | | ?????????????????????????????????# ?????????? | | ?????????????????????????????????# "????????? | | ?????????????????????????????????# "????????? | | ???????????????????????????????### "????????? | | ??????????????????????????????? ????????? | | ???????????????????????????????? ????????? | | ????????????????????????????????? ????????? | | ?????????????????????????????????? "????????? | | ?????????????????????????????????? ?????????? | | ??????????????????????????????????? ?????????? | | ???????????????????????????????????? ?????????? | | ???????????????????# ???????????????# ##????????? | | ???????????????????# ???????????????# T#????????? | | ???????????????????# ??????????????# #?????????? | | ???????????????????# ??????????????# #?????????? | | ??????????????###### ######????????# #?????????? | | ??????????????# #????????# #?????????? | | ??????????????# #????????# #?????????? | | ??????????????# #????????# #?????????? | | ??????????????# #????????# #?????????? | | ???????????#### ###++##### #?????????? | | ??????????? #?????????? | | ??????????? l #?????????? | | ??????????????# ####### ##+#####?????? | | ??????????????# @ #?????# # % #?????? | | ?????????????#i l #?????# %# #?????? | | ?????????????## #?????# # #?????? | | ??????????????# #?????# # #?????? | | ??????????????###### ##Y###?????# # #?????? | | ???????????????????# ?##????????# # #?????? | | ???????????????????# ????????????# # #?????? | | ??????????????????? ?????????????# ########?????? | | ?????????????????? ??????????????# #????????????? | | ?????????????????#???????????????# #????????????? | | ?????????????????????????????????# #????????????? | | ???????????????????????????????### ###??????????? | | ???????????????????????????????# #??????????? | | ???????????????????????????????### ###??????????? | | ?????????????????????????????????# #????????????? | | ?????????????????????????????????# #????????????? | | ?????????????????????????????????# #????????????? | | ?????????????????????????????????# #????????????? | | ?????????????????????????????????# #????????????? | | ?????????????????????????????????# #????????????? | | ?????????????????????????????????#++#????????????? | | ?????????????????????????????????# #????????????? | | #####??####??????????????????????# #????????????? | | "# ##?? #######???###??????????# #????????????? | | " #?? ##?? ##?????????# #?###????????? | +----------------------------------------------------+ Best States ------------- Heat Dissipation 28 Coolant Potential 50 Energy Generation 15 Energy Capacity 400 Matter Stores 300 Matter Capacity 300 Sight Range 16 Robot Scan Range 15 Terrain Scan Density 10 Resistance: KI 20 Resistance: TH 20 Resistance: EX 20 Resistance: EM 20 Resistance: I 20 Resistance: S 20 Resistance: P 20 Evasion (%) 44 Recoil Reduction 2 Offensive Hacking 10 Item Schematics ----------------- Grenade Launcher | -9/Materials | Scanalyzed Lgt. Cannon | -9/Materials | Scanalyzed Robot Schematics ------------------ None Fabricated ------------ Nothing Alien Tech Used ----------------- None Achievements -------------- What Is This Thing? Challenges ------------ None Game ------ Seed CooledVortexShotgun Manual? 0 Play Time 00:55:39 Cumulative 391.3 hours Start 2022.02.10 @ 22:54:18 End 2022.02.11 @ 11:02:24 Sessions 3 Manual Loads 0 Difficulty Adventurer Special Mode None Game No. 12 Rogue 0 Adventurer 12 Explorer 0 Win Type - Total 0 Types 0/0/0/0/0/0/0/0/0 Lore% 22 Gallery% 43 Achievement% 35 Wizard Run 0 Options --------- ASCII 0 Keyboard 1 Movement Vi Keybinds 0 Fullscreen 1 Font 20/SmallcapsGlow Map View 66x50 Tactical HUD 1 Map Filters NONE Filters NONE Steam 1 RUN: 8dfb9dc1-245f-4b0b-ae52-9773f786296e